bitfinex-derivatives/quotes_SOLF0:USTF0_20240930
["timestamp","ask_amount","ask_price","bid_price","bid_amount"]
[1727740423176,3.2779,152.56,152.5,14.18]
[1727740423383,3.2779,152.56,152.53,3.2785]
[1727740423680,14.18,152.6,152.46,3.26193538]
[1727740423681,72.97545897,152.62,152.54,14.18]
[1727740423884,72.97545897,152.62,152.56,3.2778]
[1727740424080,72.97545897,152.62,152.54,14.18]
[1727740424584,3.2773,152.59,152.55,3.2779]
[1727740426785,14.30502,152.63,152.54,17.42733873]
[1727740427087,0.12502,152.63,152.56,14.18]
[1727740427388,0.12502,152.63,152.52,1.3785]
[1727740427389,0.12502,152.63,152.58,14.18]
[1727740427983,3.40152,152.63,152.59,3.277]
[1727740431394,3.40152,152.63,152.57,4.69971223]
[1727740431395,0.12502,152.63,152.57,4.69971223]
[1727740431594,0.12502,152.63,152.58,3.2774]
[1727740431595,3.2767,152.62,152.58,3.2774]
[1727740434588,0.12502,152.63,152.57,3.2776]
[1727740434589,3.277,152.6,152.57,3.2776]
[1727740434999,3.277,152.6,152.54,14.18]
[1727740435189,3.277,152.6,152.55,3.34132098]
[1727740435391,3.277,152.6,152.56,3.2778]
[1727740435591,3.2776,152.58,152.54,14.18]
[1727740435786,14.18,152.61,152.53,70.82]
[1727740435992,14.18,152.61,152.53,74.0984]
[1727740436187,3.2778,152.57,152.53,74.0984]
[1727740436391,15.5151,152.61,152.53,74.0984]
[1727740436392,14.18,152.59,152.53,70.82]
[1727740438198,3.278,152.56,152.53,70.82]
[1727740438400,14.18,152.59,152.53,70.82]
[1727740438604,14.18,152.57,152.53,70.82]
[1727740439102,14.18,152.57,152.48,16.8134]
[1727740439695,3.2781,152.55,152.51,3.40382]
[1727740440398,3.2781,152.55,152.52,3.2787]
[1727740440798,3.2781,152.55,152.51,3.40392]
[1727740440998,3.2781,152.55,152.51,0.12502]
[1727740441799,14.18,152.57,152.51,0.12502]
[1727740442315,1.3694,152.56,152.51,0.12502]
[1727740443197,4.6474,152.56,152.51,3.40382]
[1727740443403,1.3694,152.56,152.51,0.12502]
[1727740443900,3.2781,152.55,152.51,3.40372]
[1727740446004,1.3694,152.56,152.51,0.12502]
[1727740446307,3.2779,152.56,152.52,3.2786]
[1727740446910,1.2724,152.6,152.52,14.18]
[1727740447604,3.2773,152.59,152.55,3.278]
[1727740448004,1.2724,152.6,152.55,3.278]
[1727740449005,1.2724,152.6,152.52,14.18]
[1727740449302,3.2772,152.59,152.52,14.18]
[1727740449608,1.2724,152.6,152.51,0.12502]
[1727740449902,14.18,152.59,152.51,0.12502]
[1727740450604,3.2778,152.57,152.53,3.2785]
[1727740450999,14.18,152.59,152.53,3.2785]
[1727740451907,3.2776,152.58,152.53,3.2785]
[1727740452107,4.56169453,152.6,152.53,3.2785]
[1727740452310,14.18,152.58,152.53,3.2785]
[1727740453013,14.18,152.58,152.51,0.12502]
[1727740453209,14.18,152.58,152.52,3.2786]
[1727740454003,3.2778,152.57,152.52,3.2786]
[1727740454204,14.18,152.58,152.52,3.2786]
[1727740454607,3.278,152.56,152.52,3.2786]
[1727740455205,14.18,152.58,152.52,3.2786]
[1727740456109,3.278,152.56,152.52,3.2786]
[1727740456503,14.18,152.58,152.52,3.2786]
[1727740456705,3.2781,152.55,152.52,3.2786]
[1727740457012,3.28929453,152.6,152.51,0.12502]
[1727740457314,0.12502,152.63,152.54,14.18]
[1727740457508,0.12502,152.63,152.54,17.45148613]
[1727740457705,3.2766,152.62,152.58,3.2772]
[1727740457904,0.12502,152.63,152.54,17.45148613]
[1727740458104,0.12502,152.63,152.56,14.18]
[1727740458304,3.40142,152.63,152.59,3.2771]
[1727740458998,0.12502,152.63,152.59,3.2771]
[1727740459199,3.2766,152.62,152.59,3.2771]
[1727740460415,0.12502,152.63,152.62,3.2766]
[1727740460711,0.12502,152.63,152.58,14.18]
[1727740460914,0.12502,152.63,152.62,3.2766]
[1727740461910,0.12502,152.63,152.58,14.18]
[1727740462112,0.12502,152.63,152.61,3.2767]
[1727740463004,0.12502,152.63,152.58,14.18]
[1727740463005,0.12502,152.63,152.57,4.58682727]
[1727740463203,0.12502,152.63,152.6,3.2769]
[1727740465713,0.12502,152.63,152.61,3.2767]
[1727740466223,0.12502,152.63,152.57,4.58682727]
[1727740466810,0.12502,152.63,152.59,3.277]
[1727740467214,3.40132,152.63,152.59,3.277]
[1727740467412,0.12502,152.63,152.61,3.2767]
[1727740472218,0.12502,152.63,152.6,3.277]
[1727740473234,3.40142,152.63,152.6,3.277]
[1727740474635,0.12502,152.63,152.6,3.277]
[1727740480541,9.18502,152.63,152.57,2.6136]
[1727740480747,9.18502,152.63,152.59,3.2771]
[1727740481244,3.2766,152.62,152.58,12.3373]
[1727740481945,3.2766,152.62,152.57,5.93864057]
[1727740481946,0.12502,152.63,152.61,9.06]
[1727740484244,0.12502,152.63,152.62,12.3366]
[1727740486048,3.2756,152.67,152.62,9.06]
[1727740486247,3.2756,152.67,152.64,9.06]
[1727740487844,9.06,152.67,152.57,6.06366057]
[1727740488145,9.06,152.63,152.57,6.06366057]
[1727740488345,9.06,152.63,152.58,9.06]
[1727740488544,12.3365,152.63,152.59,3.277]
[1727740488744,12.3365,152.63,152.57,6.06366057]
[1727740488745,9.06,152.62,152.57,6.06366057]
[1727740489049,12.3366,152.62,152.58,3.2773]
[1727740489347,3.9045,152.68,152.58,3.2773]
[1727740489552,9.06,152.62,152.58,12.3373]
[1727740489746,12.3367,152.62,152.58,12.3373]
[1727740491643,3.2768,152.61,152.58,12.3373]
[1727740494252,3.2768,152.61,152.58,9.06]
[1727740495254,9.06,152.63,152.6,3.277]
[1727740496758,12.3363,152.63,152.6,3.277]
[1727740497452,9.06,152.63,152.6,3.277]
[1727740498146,0.12502,152.69,152.6,9.06]
[1727740498357,9.06,152.68,152.62,9.06]
[1727740498851,3.2756,152.67,152.63,3.2762]
[1727740499257,3.2756,152.67,152.62,9.06]
[1727740500252,0.12502,152.69,152.66,9.06]
[1727740500459,0.12502,152.69,152.67,9.06]
[1727740502253,0.12502,152.69,152.67,12.3354]
[1727740502756,0.12502,152.69,152.68,12.3353]
[1727740504852,0.12502,152.69,152.68,3.2753]
[1727740505053,0.12502,152.69,152.68,12.3353]
[1727740506460,0.12502,152.69,152.67,12.3354]
[1727740507056,0.12502,152.69,152.68,3.2753]
[1727740509250,0.12502,152.69,152.68,12.3353]
[1727740511358,0.12518,152.71,152.7,3.2748]
[1727740511559,0.12518,152.71,152.7,12.3348]
[1727740511755,0.12518,152.71,152.65,3.22466524]
[1727740512060,0.12518,152.71,152.68,3.2751]
[1727740512867,9.06,152.69,152.66,3.2756]
[1727740513264,3.275,152.7,152.64,79.82]
[1727740513569,12.3351,152.69,152.64,79.82]
[1727740513765,0.12518,152.71,152.64,70.76]
[1727740513766,9.06,152.67,152.64,70.76]
[1727740514368,12.3357,152.67,152.64,70.76]
[1727740514569,12.3357,152.67,152.63,3.40132]
[1727740514762,9.06,152.67,152.63,3.40132]
[1727740515666,9.06,152.64,152.63,0.12502]
[1727740516174,12.3361,152.64,152.63,0.12502]
[1727740520869,9.06,152.64,152.58,70.76]
[1727740521072,9.06,152.59,152.58,70.76]
[1727740521267,9.06,152.59,152.57,0.12502]
[1727740521974,12.3372,152.59,152.57,0.12502]
[1727740523272,9.06,152.59,152.57,0.12502]
[1727740523971,3.2768,152.61,152.57,12.46242]
[1727740524167,0.12502,152.69,152.59,9.06]
[1727740524369,9.06,152.64,152.59,9.06]
[1727740524868,3.2766,152.62,152.59,9.06]
[1727740525863,9.06,152.62,152.57,0.12502]
[1727740526069,3.2769,152.61,152.57,9.18502]
[1727740526871,9.06,152.62,152.57,9.18502]
[1727740527071,12.3367,152.62,152.57,9.18502]
[1727740527573,12.3367,152.62,152.58,12.3372]
[1727740527774,1.3191,152.67,152.6,9.06]
[1727740527972,1.3191,152.67,152.62,3.2765]
[1727740528171,9.06,152.66,152.6,9.06]
[1727740529171,3.2761,152.65,152.61,3.2766]
[1727740529577,12.3361,152.65,152.61,3.2766]
[1727740529771,3.2762,152.64,152.6,12.337]
[1727740532079,12.3362,152.64,152.6,3.277]
[1727740532281,9.06,152.62,152.57,0.12502]
[1727740532581,9.06,152.62,152.57,9.18502]
[1727740532881,9.06,152.6,152.57,0.12502]
[1727740533576,12.337,152.6,152.57,0.12502]
[1727740533970,9.06,152.6,152.57,0.12502]
[1727740534478,9.06,152.6,152.57,3.40252]
[1727740534978,3.2769,152.61,152.57,9.18502]
[1727740535385,1.3191,152.67,152.58,9.06]
[1727740535587,9.06,152.63,152.58,9.06]
[1727740536576,12.3364,152.63,152.59,3.2772]
[1727740536787,1.3191,152.67,152.6,9.06]
[1727740536984,1.3191,152.67,152.63,9.06]
[1727740537176,9.06,152.66,152.63,3.2762]
[1727740537377,9.06,152.66,152.61,9.06]
[1727740537576,1.3191,152.67,152.59,14.16]
[1727740537981,3.2759,152.66,152.59,14.16]
[1727740540189,1.3191,152.67,152.59,14.16]
[1727740540190,4.5946,152.67,152.59,14.16]
[1727740540488,2.7114,152.68,152.61,14.16]
[1727740540788,5.9868,152.68,152.63,3.2763]
[1727740541083,14.16,152.7,152.61,14.16]
[1727740541287,3.2756,152.67,152.63,3.2762]
[1727740542381,14.16,152.7,152.59,1.3483]
[1727740542581,14.16,152.68,152.59,1.3483]
[1727740542986,3.2758,152.66,152.62,3.2764]
[1727740543186,3.2758,152.66,152.59,1.3483]
[1727740543586,3.2756,152.67,152.63,3.2763]
[1727740545982,3.2756,152.67,152.6,14.16]
[1727740546194,2.81518,152.71,152.62,14.16]
[1727740546487,14.16,152.7,152.6,14.16]
[1727740546787,14.16,152.68,152.63,3.2762]
[1727740547378,2.81518,152.71,152.61,14.16]
[1727740547582,0.12518,152.71,152.64,14.16]
[1727740547781,0.12518,152.71,152.65,3.32744603]
[1727740548088,0.12518,152.71,152.68,3.2753]
[1727740548484,3.2748,152.7,152.65,3.2758]
[1727740548790,14.28502,152.69,152.62,70.78]
[1727740549385,14.28502,152.69,152.63,3.2761]
[1727740549386,3.2755,152.67,152.63,3.2761]
[1727740549780,3.2755,152.67,152.62,70.78]
[1727740550791,14.28502,152.69,152.63,3.2763]
[1727740551687,14.28502,152.69,152.62,70.78]
[1727740551688,3.2756,152.67,152.64,3.2761]
[1727740551882,0.12502,152.69,152.63,14.16]
[1727740554488,0.12502,152.69,152.67,3.2753]
[1727740556092,3.40022,152.69,152.65,3.2759]
[1727740556393,3.40022,152.69,152.64,2.6749]
[1727740556394,14.28502,152.69,152.62,70.78]
[1727740556784,3.2753,152.68,152.64,3.276]
[1727740557188,3.2755,152.67,152.62,70.78]
[1727740557390,14.28502,152.69,152.63,3.2763]
[1727740558186,0.12502,152.69,152.62,3.29565932]
[1727740558397,0.12502,152.69,152.65,3.2758]
[1727740559393,0.12502,152.69,152.64,3.2761]
[1727740559784,0.12502,152.69,152.62,3.23077511]
[1727740560499,0.12502,152.69,152.61,14.16]
[1727740560695,14.16,152.68,152.6,87.41634001]
[1727740560892,3.2756,152.67,152.63,3.2762]
[1727740561899,3.2757,152.66,152.63,3.2762]
[1727740564695,3.2756,152.67,152.63,3.2762]
[1727740566901,3.40012,152.69,152.62,17.51628346]
[1727740567099,3.40012,152.69,152.64,14.16]
[1727740567896,0.12502,152.69,152.67,3.2753]
[1727740569905,0.12502,152.69,152.64,14.16]
[1727740569906,14.28502,152.69,152.6,172.35634001]
[1727740570107,14.28502,152.69,152.6,173.66134001]
[1727740570503,14.28502,152.69,152.6,159.50134001]
[1727740570504,3.2757,152.66,152.6,159.50134001]
[1727740570805,0.12502,152.69,152.62,14.16]
[1727740570996,3.40012,152.69,152.64,3.2761]
[1727740571498,0.12502,152.69,152.64,3.2761]
[1727740572213,3.2753,152.68,152.64,3.276]
[1727740573005,0.12502,152.69,152.64,14.16]
[1727740573208,0.12502,152.69,152.66,14.16]
[1727740573614,0.12502,152.69,152.68,3.2753]
[1727740575308,0.12518,152.71,152.7,3.2748]
[1727740578114,0.12502,152.75,152.68,14.16]
[1727740578315,3.39892,152.75,152.71,3.2744]
[1727740578508,0.12502,152.75,152.7,14.16]
[1727740578912,0.12502,152.75,152.72,3.2743]
[1727740579216,0.12502,152.75,152.7,14.16]
[1727740579413,0.12502,152.75,152.73,3.2741]
[1727740580013,0.12502,152.75,152.67,14.16]
[1727740580218,14.28502,152.75,152.66,73.3545]
[1727740580423,14.16,152.73,152.66,74.616]
[1727740580626,3.2746,152.72,152.68,3.2752]
[1727740583128,0.12502,152.75,152.69,14.16]
[1727740583933,0.12502,152.75,152.7,3.2747]
[1727740584128,0.12502,152.75,152.69,14.16]
[1727740584825,0.12502,152.75,152.71,3.2745]
[1727740585025,3.2741,152.74,152.67,14.16]
[1727740585222,3.2741,152.74,152.66,3.856]
[1727740585223,14.16,152.74,152.66,3.856]
[1727740586335,3.2746,152.72,152.68,3.2751]
[1727740586537,14.16,152.74,152.66,3.856]
[1727740587134,3.2744,152.73,152.69,3.275]
[1727740587332,0.12502,152.75,152.67,14.16]
[1727740587823,0.12502,152.75,152.69,14.16]
[1727740588430,0.12502,152.75,152.71,3.2744]
[1727740588636,0.12502,152.75,152.69,14.16]
[1727740589037,3.39882,152.75,152.71,3.2746]
[1727740591744,3.39882,152.75,152.72,3.2744]
[1727740591936,0.12502,152.75,152.72,3.2744]
[1727740592841,0.12502,152.75,152.69,22.65]
[1727740593046,3.39882,152.75,152.71,3.2745]
[1727740593234,3.39882,152.75,152.69,22.65]
[1727740595052,3.39882,152.75,152.71,3.2745]
[1727740595542,0.12502,152.75,152.69,22.65]
[1727740595944,0.12502,152.75,152.68,86.060641]
[1727740596343,3.2742,152.73,152.69,3.2749]
[1727740596541,0.12502,152.75,152.68,86.060641]
[1727740597450,0.12502,152.75,152.69,22.65]
[1727740597652,0.12502,152.75,152.72,3.2742]
[1727740598240,0.12502,152.75,152.73,3.2741]
[1727740599449,0.12502,152.75,152.69,22.65]
[1727740599942,0.12502,152.75,152.68,86.060641]
[1727740600342,3.2743,152.73,152.68,86.060641]
[1727740600545,0.12502,152.75,152.68,86.060641]
[1727740601846,0.12502,152.81,152.73,22.65]
[1727740602050,0.12502,152.81,152.77,3.2732]
[1727740602249,0.12502,152.81,152.76,22.65]
[1727740602450,0.12502,152.81,152.76,25.99971406]
[1727740602645,0.12502,152.81,152.78,3.2729]
[1727740603749,0.12502,152.81,152.77,3.2732]
[1727740604547,0.12502,152.81,152.78,3.2731]
[1727740608158,3.2728,152.8,152.76,3.2734]
[1727740608352,0.12502,152.81,152.74,3.9637]
[1727740608949,0.12502,152.81,152.74,7.27608515]
[1727740609663,3.39772,152.81,152.76,3.2734]
[1727740610251,3.2729,152.8,152.76,3.2734]
[1727740610461,0.12502,152.81,152.75,3.2737]
[1727740610758,3.2731,152.79,152.75,3.2737]
[1727740611147,3.2731,152.79,152.74,2.6084]
[1727740611352,3.2731,152.79,152.76,3.2735]
[1727740614067,3.2731,152.79,152.75,3.2737]
[1727740614965,3.2732,152.78,152.75,3.2737]
[1727740615160,14.27502,152.81,152.73,3.2741]
[1727740615559,3.2735,152.77,152.73,3.2741]
[1727740615765,14.27502,152.81,152.73,3.2741]
[1727740615963,14.15,152.79,152.71,70.72]
[1727740616265,3.2739,152.75,152.71,73.9945]
[1727740616561,3.2739,152.75,152.71,70.72]
[1727740616862,3.2736,152.76,152.73,3.2741]
[1727740617071,14.15,152.79,152.71,70.72]
[1727740617468,14.15,152.77,152.71,73.9946]
[1727740618470,14.15,152.77,152.71,3.2746]
[1727740618774,3.2738,152.75,152.71,3.2746]
[1727740622175,3.2731,152.78,152.75,3.2737]
[1727740622367,4.0272,152.8,152.72,14.15]
[1727740622875,3.2736,152.76,152.72,14.15]
[1727740623076,14.15,152.79,152.7,14.15]
[1727740623275,4.0272,152.8,152.73,14.15]
[1727740623876,4.0272,152.8,152.75,3.2736]
[1727740623877,3.273,152.79,152.75,3.2736]
[1727740625379,3.2731,152.78,152.75,3.2736]
[1727740626677,4.0272,152.8,152.75,3.2736]
[1727740626878,3.273,152.79,152.75,3.2736]
[1727740628381,3.2731,152.78,152.75,3.2736]
[1727740629674,14.15,152.79,152.69,84.99502]
[1727740630480,14.15,152.78,152.69,84.99502]
[1727740631579,3.2739,152.75,152.69,84.99502]
[1727740632670,3.2739,152.75,152.71,3.2745]
[1727740633781,3.2737,152.76,152.72,3.2743]
[1727740634176,3.2737,152.76,152.69,14.27502]
[1727740634376,18.1772,152.8,152.73,3.2741]
[1727740634377,3.2734,152.77,152.73,3.2741]
[1727740635173,3.2734,152.77,152.71,14.15]
[1727740635385,3.2734,152.77,152.74,3.2739]
[1727740635684,3.2732,152.78,152.74,3.2739]
[1727740635886,0.12502,152.81,152.78,3.2729]
[1727740636081,0.12502,152.81,152.75,15.4167]
[1727740636383,14.27502,152.81,152.73,2.6507]
[1727740636680,14.27502,152.81,152.74,3.2738]
[1727740637776,3.2732,152.78,152.74,3.2738]
[1727740638179,14.15,152.8,152.72,3.2743]
[1727740638378,14.15,152.8,152.7,15.4249]
[1727740638674,14.15,152.78,152.71,3.2745]
[1727740638877,3.2738,152.75,152.71,3.2745]
[1727740640082,3.274,152.74,152.7,4.5497]
[1727740641483,3.2746,152.71,152.69,70.84502]
[1727740641685,22.64,152.76,152.69,70.84502]
[1727740642185,22.64,152.76,152.69,0.12502]
[1727740643289,3.2746,152.72,152.69,0.12502]
[1727740645783,3.2744,152.72,152.69,0.12502]
[1727740645988,22.64,152.76,152.69,0.12502]
[1727740646581,3.2746,152.72,152.69,0.12502]
[1727740646886,22.64,152.76,152.69,0.12502]
[1727740647387,22.64,152.78,152.69,0.12502]
[1727740647790,3.2742,152.73,152.69,0.12502]
[1727740647978,22.64,152.78,152.69,0.12502]
[1727740648183,3.9612,152.8,152.7,22.64]
[1727740648683,26.6012,152.8,152.69,0.12502]
[1727740649480,3.2741,152.74,152.7,3.2748]
[1727740650285,3.2744,152.73,152.69,3.40002]
[1727740650585,22.64,152.78,152.69,0.12502]
[1727740650886,3.2748,152.7,152.69,0.12502]
[1727740651086,22.64,152.75,152.69,0.12502]
[1727740651786,3.2746,152.71,152.69,0.12502]
[1727740652377,3.2741,152.74,152.69,0.12502]
[1727740652576,22.64,152.75,152.69,0.12502]
[1727740653286,3.2748,152.7,152.69,0.12502]
[1727740653689,1.2451,152.74,152.69,0.12502]
[1727740654388,22.64,152.78,152.69,0.12502]
[1727740654985,3.2743,152.73,152.69,3.39992]
[1727740655186,22.64,152.78,152.69,0.12502]
[1727740655483,3.2745,152.72,152.69,0.12502]
[1727740655688,22.64,152.78,152.69,0.12502]
[1727740656392,3.2748,152.7,152.69,0.12502]
[1727740657190,22.64,152.78,152.69,0.12502]
[1727740657388,3.2747,152.71,152.69,0.12502]
[1727740658594,3.2748,152.7,152.69,0.12502]
[1727740658791,22.64,152.78,152.69,0.12502]
[1727740659291,3.2748,152.7,152.69,0.12502]
[1727740663794,14.15,152.71,152.63,0.12502]
[1727740663994,3.2758,152.66,152.63,3.40132]
[1727740664193,14.15,152.69,152.63,0.12502]
[1727740664703,3.2761,152.64,152.63,0.12502]
[1727740668097,3.276,152.65,152.63,0.12502]
[1727740668502,15.4995,152.67,152.63,0.12502]
[1727740669404,3.2761,152.64,152.63,0.12502]
[1727740670502,1.3495,152.67,152.63,0.12502]
[1727740671114,3.2761,152.65,152.63,0.12502]
[1727740671300,1.3495,152.67,152.63,0.12502]
[1727740672006,3.2761,152.64,152.63,0.12502]
[1727740676815,3.2756,152.67,152.63,0.12502]
[1727740677908,3.2757,152.66,152.63,3.40132]
[1727740678614,1.3047,152.71,152.63,0.12502]
[1727740679115,1.3047,152.71,152.65,3.2758]
[1727740679116,3.2753,152.68,152.65,3.2758]
[1727740679613,3.2753,152.68,152.64,3.276]
[1727740680203,1.3047,152.71,152.64,3.276]
[1727740680416,3.2756,152.67,152.63,3.40132]
[1727740681309,3.2756,152.67,152.64,3.2761]
[1727740681503,15.4547,152.71,152.63,0.12502]
[1727740681710,15.4547,152.71,152.64,14.15]
[1727740681711,3.2751,152.69,152.64,14.15]
[1727740682006,3.2751,152.69,152.65,3.2758]
[1727740682209,3.2745,152.72,152.66,14.15]
[1727740682513,3.2745,152.72,152.68,3.2752]
[1727740682710,15.465,152.77,152.66,14.15]
[1727740682910,15.465,152.77,152.7,3.2748]
[1727740683111,15.465,152.77,152.68,14.15]
[1727740684514,15.465,152.77,152.66,14.15]
[1727740684711,3.2749,152.7,152.66,3.2756]
[1727740684915,14.15,152.73,152.65,2.6505]
[1727740685111,14.15,152.71,152.63,0.12502]
[1727740685316,3.2755,152.68,152.64,3.2761]
[1727740685513,14.15,152.71,152.63,0.12502]
[1727740685816,4.69268271,152.72,152.63,0.12502]
[1727740685817,14.15,152.69,152.63,0.12502]
[1727740686208,3.2757,152.66,152.63,3.40132]
[1727740686405,3.2757,152.66,152.63,0.12502]
[1727740686810,14.15,152.69,152.63,0.12502]
[1727740687518,3.2758,152.66,152.63,0.12502]
[1727740689114,14.15,152.69,152.63,0.12502]
[1727740689311,3.2759,152.65,152.63,0.12502]
[1727740693827,3.2761,152.64,152.63,0.12502]
[1727740696625,14.15,152.69,152.63,0.12502]
[1727740697222,3.2761,152.65,152.63,0.12502]
[1727740705623,1.2793,152.71,152.63,9.18502]
[1727740705829,3.2756,152.67,152.64,3.2761]
[1727740706531,3.2745,152.72,152.67,3.2753]
[1727740706727,9.06,152.73,152.68,9.06]
[1727740707126,3.275,152.7,152.68,9.06]
[1727740707325,9.06,152.69,152.63,1.49482]
[1727740707532,9.06,152.67,152.63,10.55482]
[1727740707928,9.06,152.67,152.63,9.18502]
[1727740708641,3.2758,152.66,152.63,12.46122]
[1727740709230,12.3356,152.67,152.63,12.46122]
[1727740714036,12.336,152.65,152.63,0.12502]
[1727740715036,3.2761,152.64,152.63,0.12502]
[1727740719942,9.06,152.66,152.63,0.12502]
[1727740721145,3.2761,152.65,152.63,0.12502]
[1727740721538,0.12502,152.75,152.64,9.06]
[1727740721741,0.12502,152.75,152.73,9.06]
[1727740722346,0.12502,152.75,152.72,9.06]
[1727740722648,0.12502,152.75,152.72,12.3343]
[1727740726749,0.12502,152.75,152.73,3.2742]
[1727740730649,9.18502,152.75,152.68,70.78]
[1727740730848,9.06,152.72,152.68,79.84]
[1727740731049,9.06,152.71,152.68,70.78]
[1727740732248,9.06,152.71,152.69,3.275]
[1727740734958,9.06,152.71,152.68,74.0551]
[1727740735152,12.3347,152.71,152.68,74.0551]
[1727740735351,12.3347,152.71,152.68,70.78]
[1727740735352,9.06,152.7,152.68,70.78]
[1727740736043,9.06,152.7,152.65,13.72555247]
[1727740736248,9.06,152.71,152.68,3.2751]
[1727740738553,12.3346,152.71,152.68,3.2751]
[1727740739857,9.06,152.71,152.68,3.2751]
[1727740740454,12.3347,152.71,152.68,3.2751]
[1727740742458,9.18502,152.75,152.69,9.06]
[1727740742956,3.2741,152.74,152.7,3.2748]
[1727740743260,9.06,152.72,152.67,9.06]
[1727740743657,9.06,152.72,152.68,3.2751]
[1727740744059,9.06,152.71,152.68,3.2751]
[1727740744458,12.3345,152.72,152.68,3.2751]
[1727740745157,12.3343,152.73,152.7,3.2748]
[1727740745651,3.2746,152.71,152.67,3.2755]
[1727740745857,9.06,152.71,152.66,9.06]
[1727740746262,9.06,152.71,152.68,3.2751]
[1727740746558,9.06,152.71,152.66,9.06]
[1727740747357,12.3346,152.71,152.68,3.2752]
[1727740747963,12.3346,152.71,152.67,3.2754]
[1727740748858,3.2749,152.7,152.67,3.2754]
[1727740749058,9.06,152.68,152.64,70.74]
[1727740750163,9.06,152.68,152.63,9.18502]
[1727740750364,12.3353,152.68,152.65,3.2758]
[1727740750766,12.3353,152.68,152.63,0.12502]
[1727740751067,9.06,152.67,152.64,3.276]
[1727740752359,12.3356,152.67,152.63,3.40132]
[1727740753067,12.3356,152.67,152.63,0.12502]
[1727740753266,12.3356,152.67,152.64,3.2761]
[1727740753466,9.06,152.67,152.64,3.2761]
[1727740755371,12.3355,152.67,152.64,3.2761]
[1727740755774,12.3355,152.67,152.63,3.40132]
[1727740755970,9.06,152.66,152.63,0.12502]
[1727740756174,3.2759,152.65,152.63,0.12502]
[1727740756371,9.06,152.64,152.63,0.12502]
[1727740757074,1.335,152.72,152.63,12.49182106]
[1727740757277,1.335,152.72,152.67,9.06]
[1727740757278,10.395,152.72,152.67,9.06]
[1727740757883,3.2749,152.7,152.67,9.06]
[1727740758984,3.2747,152.71,152.68,3.2753]
[1727740759280,3.2747,152.71,152.67,9.06]
[1727740759681,3.2747,152.71,152.65,14.14]
[1727740760174,3.2747,152.71,152.67,3.2753]
[1727740761775,3.2746,152.72,152.68,3.2752]
[1727740761970,3.2746,152.72,152.65,17.41327458]
[1727740762180,0.12502,152.75,152.67,14.14]
[1727740762379,0.12502,152.75,152.69,14.14]
[1727740762380,3.39892,152.75,152.69,14.14]
[1727740762677,0.12502,152.75,152.67,14.14]
[1727740762883,14.26502,152.75,152.67,17.49048571]
[1727740763087,14.26502,152.75,152.65,14.14]
[1727740763385,14.26502,152.75,152.65,17.42692281]
[1727740763585,3.2744,152.72,152.67,3.2753]
[1727740765877,14.26502,152.75,152.67,3.2753]
[1727740766081,3.2746,152.71,152.67,3.2753]
[1727740768085,3.2746,152.71,152.65,17.42692281]
[1727740768277,3.2746,152.71,152.68,3.2753]